bitfinex-derivatives/quotes_BNBF0:USTF0_20251225
["timestamp","ask_amount","ask_price","bid_price","bid_amount"]
[1766702643454,1.18783761,840.61,839.46,0.89225052]
[1766702645460,1.18783761,840.61,839.45,0.89225052]
[1766702645956,1.332,840.6,839.45,0.89225052]
[1766702649358,1.332,840.6,839.46,0.89225052]
[1766702650663,1.332,840.6,839.45,0.89225052]
[1766702650862,2.51983761,840.6,839.45,0.89225052]
[1766702652464,1.18783761,840.59,839.46,0.89225052]
[1766702653261,1.18783761,840.59,839.45,0.89225052]
[1766702655363,1.18783761,840.58,839.45,0.89225052]
[1766702656766,1.18783761,840.58,839.44,0.89225052]
[1766702658367,1.18783761,840.57,839.44,0.89225052]
[1766702660466,1.18783761,840.57,839.45,0.89225052]
[1766702663474,1.18783761,840.56,839.45,0.89225052]
[1766702664376,1.18783761,840.56,839.46,0.89225052]
[1766702665377,1.18783761,840.55,839.46,0.89225052]
[1766702666383,1.18783761,840.55,839.47,0.89225052]
[1766702667384,1.18783761,840.54,839.47,0.89225052]
[1766702668386,1.18783761,840.54,839.48,0.89225052]
[1766702668886,1.18783761,840.53,839.48,0.89225052]
[1766702669585,1.18783761,840.53,839.49,0.89225052]
[1766702670386,1.18783761,840.52,839.5,0.89225052]
[1766702671191,1.18783761,840.51,839.49,0.89225052]
[1766702671490,1.18783761,840.49,839.5,0.89225052]
[1766702672583,1.18783761,840.49,839.35,1.18807796]
[1766702672584,1.18783761,840.48,839.51,0.89225052]
[1766702673286,1.18783761,840.47,839.52,0.89225052]
[1766702674490,1.332,840.6,839.54,0.89225052]
[1766702674491,1.18783761,840.46,839.54,0.89225052]
[1766702674691,1.18783761,840.43,839.51,0.89225052]
[1766702674892,1.18783761,840.41,839.49,0.89225052]
[1766702675092,1.18783761,840.36,839.44,0.89225052]
[1766702675592,1.18783761,840.27,839.34,0.89225052]
[1766702676392,1.18783761,840.19,839.23,0.89225052]
[1766702676793,1.18783761,840.18,839.22,0.89225052]
[1766702677289,1.18783761,840.17,839.14,0.89225052]
[1766702677690,1.18783761,840.16,839.13,0.89225052]
[1766702678294,1.18783761,840.2,839.17,0.89225052]
[1766702678589,1.18783761,840.21,839.14,0.89225052]
[1766702679491,2.96959403,840.96,839.12,0.89225052]
[1766702679492,1.18783761,840.22,839.12,0.89225052]
[1766702679695,1.18783761,840.21,839.11,0.89225052]
[1766702680396,1.18783761,840.23,839.1,0.89225052]
[1766702681293,1.367,840.22,839.1,0.89225052]
[1766702681494,1.367,840.22,839.08,0.89225052]
[1766702681997,0.20723352,839.95,839.08,0.89225052]
[1766702682492,0.20723352,839.95,839.07,0.89225052]
[1766702683396,0.20723352,839.95,839.06,0.89225052]
[1766702684400,0.20723352,839.95,839.05,0.89225052]
[1766702686299,0.20723352,839.95,839.04,0.89225052]
[1766702688601,0.20723352,839.95,839.03,0.89225052]
[1766702690398,0.20723352,839.95,838.88,1.18807796]
[1766702690399,0.20723352,839.95,839.02,0.89225052]
[1766702695401,0.20723352,839.95,839.01,0.89225052]
[1766702697805,0.20723352,839.95,839.0,0.89225052]
[1766702701004,0.20723352,839.95,838.94,0.89225052]
[1766702702208,0.20723352,839.95,838.93,0.89225052]
[1766702702508,0.20723352,839.95,838.94,0.89225052]
[1766702703310,0.20723352,839.95,838.93,0.89225052]
[1766702703506,0.20723352,839.95,838.94,0.89225052]
[1766702704206,0.20723352,839.95,838.93,0.89225052]
[1766702704509,0.20723352,839.95,838.94,0.89225052]
[1766702704710,0.20723352,839.95,838.94,9.80429606]
[1766702705411,0.20723352,839.95,838.94,8.91204554]
[1766702707212,0.20723352,839.95,838.74,0.89225052]
[1766702707412,0.20723352,839.95,838.68,0.89225052]
[1766702708309,0.20723352,839.95,838.65,0.89225052]
[1766702708711,1.18783761,839.53,838.21,0.89225052]
[1766702709008,1.18783761,839.14,837.81,0.89225052]
[1766702709221,2.96959403,839.89,837.7,0.89225052]
[1766702709222,1.18783761,839.23,837.7,0.89225052]
[1766702709410,0.87805012,839.0,837.62,0.89225052]
[1766702709812,0.01458837,839.84,837.13,0.20753569]
[1766702709813,0.87805012,838.98,837.61,0.89225052]
[1766702710313,0.87805012,839.06,837.54,0.89225052]
[1766702711409,0.87805012,839.06,837.13,0.20753569]
[1766702711410,0.87805012,839.08,837.45,0.89225052]
[1766702712310,0.87805012,839.13,837.4,0.89225052]
[1766702712711,0.87805012,839.12,837.39,0.89225052]
[1766702712911,0.87805012,839.04,837.31,0.89225052]
[1766702713315,0.87805012,839.09,837.27,0.89225052]
[1766702714312,0.87805012,839.12,837.21,0.89225052]
[1766702715315,0.87805012,839.16,837.18,0.89225052]
[1766702716314,0.87805012,839.19,837.15,0.89225052]
[1766702716814,0.87805012,839.18,837.14,0.89225052]
[1766702717018,0.87805012,839.14,837.1,0.89225052]
[1766702717313,0.87805012,839.14,837.05,0.89225052]
[1766702718121,0.87805012,839.04,836.94,0.89225052]
[1766702718314,0.87805012,839.09,836.93,0.89225052]
[1766702718519,0.87805012,839.08,836.93,0.89225052]
[1766702718816,0.87805012,839.08,836.92,0.89225052]
[1766702719118,0.87805012,839.08,836.93,0.89225052]
[1766702719318,0.87805012,839.11,836.9,0.89225052]
[1766702720318,0.87805012,839.14,836.88,0.89225052]
[1766702721019,0.87805012,839.12,836.87,0.89225052]
[1766702721216,0.87805012,839.06,836.76,0.89225052]
[1766702721513,0.87805012,839.06,835.86,2.97019491]
[1766702721514,0.87805012,838.83,836.53,0.89225052]
[1766702721920,0.87805012,838.82,836.52,0.89225052]
[1766702722115,0.87805012,838.81,836.51,0.89225052]
[1766702722316,1.312,838.81,836.47,0.89225052]
[1766702722521,1.312,838.81,836.44,0.89225052]
[1766702723023,0.87805012,838.78,836.39,0.89225052]
[1766702723420,1.312,838.81,836.35,0.89225052]
[1766702723625,0.87805012,838.79,836.32,0.89225052]
[1766702724124,0.87805012,838.78,836.31,0.89225052]
[1766702724324,1.312,838.81,836.27,0.89225052]
[1766702725225,1.312,838.81,836.24,0.89225052]
[1766702725425,1.312,838.81,836.23,1.09999993]
[1766702726222,1.312,838.81,836.23,0.20774941]
[1766702727423,1.312,838.81,836.26,0.89225052]
[1766702727626,1.312,838.81,836.27,0.89225052]
[1766702728022,1.312,838.81,836.28,0.89225052]
[1766702728324,1.312,838.81,836.3,0.89225052]
[1766702728723,1.312,838.81,836.35,0.89225052]
[1766702729329,1.312,838.81,836.38,0.89225052]
[1766702729525,1.312,838.81,836.39,0.89225052]
[1766702730229,1.312,838.81,836.46,54.52184962]
[1766702730432,1.312,838.81,836.49,0.89225052]
[1766702731024,1.312,838.81,836.52,0.89225052]
[1766702731531,1.312,838.81,836.57,0.89225052]
[1766702731730,1.312,838.81,836.6,0.89225052]
[1766702732224,1.312,838.81,836.61,0.89225052]
[1766702732831,1.312,838.81,836.63,0.89225052]
[1766702733031,1.312,838.81,836.64,0.89225052]
[1766702733526,1.312,838.81,836.66,0.89225052]
[1766702734331,1.312,838.81,836.67,0.89225052]
[1766702734930,1.312,838.81,836.7,0.89225052]
[1766702735332,1.312,838.81,836.72,0.89225052]
[1766702736432,1.312,838.81,836.73,0.89225052]
[1766702737431,1.312,838.81,836.75,0.89225052]
[1766702737630,1.312,838.81,836.74,0.89225052]
[1766702737831,1.312,838.81,836.7,0.89225052]
[1766702738333,1.312,838.81,836.69,0.89225052]
[1766702738933,1.312,838.81,836.68,0.89225052]
[1766702739330,1.312,838.81,836.69,0.89225052]
[1766702739533,1.312,838.81,836.7,0.89225052]
[1766702739734,1.312,838.81,836.71,0.89225052]
[1766702740434,1.312,838.81,836.73,0.89225052]
[1766702741329,1.312,838.81,836.77,0.89225052]
[1766702741534,1.312,838.81,836.77,9.74027268]
[1766702741737,1.312,838.81,836.77,8.84802216]
[1766702742438,1.312,838.81,836.78,0.89225052]
[1766702743138,1.312,838.81,836.8,0.89225052]
[1766702743438,1.312,838.81,836.79,0.89225052]
[1766702743639,1.312,838.81,836.78,0.89225052]
[1766702744435,1.312,838.81,836.81,0.89225052]
[1766702745243,1.312,838.81,836.82,0.89225052]
[1766702746236,1.312,838.81,836.83,0.89225052]
[1766702746541,1.312,838.81,836.86,0.89225052]
[1766702746741,1.312,838.81,836.82,0.89225052]
[1766702747237,1.312,838.81,836.86,0.89225052]
[1766702748238,1.312,838.81,836.91,0.89225052]
[1766702749241,1.312,838.81,836.97,0.89225052]
[1766702749443,2.19005012,838.81,836.97,8.93241855]
[1766702750238,0.87805012,838.74,837.02,0.89225052]
[1766702751337,0.87805012,838.67,837.09,0.89225052]
[1766702752243,0.87805012,838.6,837.16,0.89225052]
[1766702752842,0.87805012,838.6,837.16,10.00084201]
[1766702753341,0.87805012,838.51,837.25,0.89225052]
[1766702754241,0.01259534,839.35,837.26,0.89225052]
[1766702754242,0.87805012,838.5,837.26,0.89225052]
[1766702755243,0.87805012,838.49,837.27,0.89225052]
[1766702756147,0.992,838.48,837.27,0.89225052]
[1766702756346,1.87005012,838.48,837.28,0.89225052]
[1766702756542,0.87805012,838.46,837.27,0.89225052]
[1766702756743,0.87805012,838.41,837.22,0.89225052]
[1766702757247,0.87805012,838.4,837.23,0.89225052]
[1766702758444,0.87805012,838.4,837.24,0.89225052]
[1766702759046,0.87805012,838.36,837.2,0.89225052]
[1766702759248,0.87805012,838.29,837.14,0.89225052]
[1766702759448,1.18783761,838.44,837.05,8.87650069]
[1766702759645,0.88016292,838.29,837.14,0.89056402]
[1766702760251,0.88016292,838.29,837.15,0.89056402]
[1766702760946,0.88016292,838.27,837.13,0.89056402]
[1766702761345,0.88016292,838.27,837.14,0.89056402]
[1766702762249,0.88016292,838.26,837.14,0.89056402]
[1766702762754,0.88016292,838.25,837.12,0.89056402]
[1766702763054,0.88016292,838.21,837.09,0.89056402]
[1766702763754,0.88016292,838.2,837.07,0.89056402]
[1766702763956,0.88016292,838.14,837.02,0.89056402]
[1766702764455,0.88016292,838.05,836.91,0.89056402]
[1766702764656,0.88016292,837.97,836.84,0.89056402]
[1766702764852,0.88016292,837.97,836.83,0.89056402]
[1766702765258,0.88016292,837.95,836.81,0.89056402]
[1766702765455,0.88016292,837.95,836.79,0.89056402]
[1766702765957,0.88016292,837.94,836.77,0.89056402]
[1766702766452,0.88016292,837.95,836.76,0.89056402]
[1766702767453,1.18783761,838.11,836.59,1.18807796]
[1766702767654,0.87891754,837.96,836.74,0.89008847]
[1766702767852,0.87891754,837.96,836.74,9.88932139]
[1766702768355,0.87891754,837.97,836.74,8.99923292]
[1766702769257,0.87891754,837.98,836.74,8.99923292]
[1766702770357,0.87891754,837.99,836.74,8.99923292]
[1766702771254,0.87891754,837.98,836.72,0.89008847]
[1766702771458,1.78175641,838.28,835.82,2.97019491]
[1766702771459,0.87891754,838.01,836.73,0.89008847]
[1766702771758,0.87891754,838.03,836.75,0.89008847]
[1766702771960,0.87891754,838.1,836.82,0.89008847]
[1766702772154,0.87891754,838.1,836.82,9.85514864]
[1766702772354,0.87891754,838.14,836.86,0.89008847]
[1766702773254,0.87832304,838.15,836.87,0.88913541]
[1766702773459,0.87832304,838.18,836.9,0.88913541]
[1766702773657,0.992,838.48,836.91,0.88913541]
[1766702773658,0.87832304,838.19,836.91,0.88913541]
[1766702774459,0.87832304,838.27,836.99,0.88913541]
[1766702775160,0.87832304,838.27,836.98,0.88913541]
[1766702775353,0.87832304,838.27,836.99,0.88913541]
[1766702775955,0.87832304,838.28,836.99,0.88913541]
[1766702776456,0.87832304,838.33,837.05,0.88913541]
[1766702777558,0.87832304,838.34,837.06,0.88913541]
[1766702778262,0.87832304,838.34,837.07,0.88913541]
[1766702780260,0.87832304,838.35,837.09,0.88913541]
[1766702780460,0.87832304,838.38,837.12,0.88913541]
[1766702781259,0.87832304,838.37,837.12,0.88913541]
[1766702782065,0.87832304,838.46,837.22,0.88913541]
[1766702783366,0.992,838.48,837.29,0.88913541]
[1766702783566,0.992,838.48,837.3,0.88913541]
[1766702785368,0.992,838.48,837.33,0.88913541]
[1766702788864,0.992,838.48,837.35,0.88913541]
[1766702789268,0.992,838.48,837.37,0.88913541]
[1766702789467,0.992,838.48,837.4,0.88913541]
[1766702789865,0.992,838.48,837.36,0.88913541]
[1766702790065,0.992,838.48,837.38,0.88913541]
[1766702790265,0.992,838.48,837.37,0.88913541]
[1766702793069,0.87832304,838.62,837.37,0.88913541]
[1766702793265,0.87832304,838.62,837.36,0.88913541]
[1766702794270,0.87832304,838.63,837.36,0.88913541]
[1766702795570,1.396,838.62,837.36,0.88913541]
[1766702797375,1.396,838.62,837.35,0.88913541]
[1766702800876,1.396,838.62,837.35,0.88829106]
[1766702802474,1.396,838.62,837.34,0.88829106]
[1766702804575,1.396,838.62,837.4,0.88829106]
[1766702804774,1.396,838.62,837.4,9.83173099]
[1766702805080,1.396,838.62,837.4,8.94343993]
[1766702808381,1.396,838.62,837.35,0.88829106]
[1766702810282,1.396,838.62,837.36,0.88829106]
[1766702810478,1.396,838.62,837.35,0.88829106]
[1766702810684,1.396,838.62,837.2,1.18807796]
[1766702810685,1.396,838.62,837.32,0.88829106]
[1766702811384,1.396,838.62,837.33,0.88829106]
[1766702812286,0.87830874,838.59,837.32,0.88829106]
[1766702813288,0.87830874,838.57,837.34,0.88829106]
[1766702813689,0.87830874,838.57,837.04,1.78211694]
[1766702813690,0.87830874,838.6,837.36,0.88829106]
[1766702814391,0.87830874,838.58,837.39,0.88829106]
[1766702814592,0.87830874,838.59,837.4,0.88829106]
[1766702814791,0.87830874,838.6,837.41,0.88829106]
[1766702815288,0.87830874,838.58,837.43,0.88829106]
[1766702815492,0.87830874,838.58,837.42,0.88829106]
[1766702815686,0.87830874,838.57,837.42,0.88829106]
[1766702815888,0.87830874,838.58,837.43,0.88829106]
[1766702816394,0.87830874,838.56,837.46,0.88829106]
[1766702816592,0.87830874,838.58,837.48,0.88829106]
[1766702816792,0.87830874,838.59,837.49,0.88829106]
[1766702817093,0.87830874,838.6,837.5,0.88829106]
[1766702817288,0.87830874,838.59,837.52,0.88829106]
[1766702818393,0.87830874,838.59,837.36,8.93367508]
[1766702818394,0.87830874,838.57,837.54,0.88829106]
[1766702819289,0.87830874,838.56,837.55,0.88829106]
[1766702820196,0.87830874,838.54,837.52,0.88829106]
[1766702820393,0.87830874,838.52,837.53,0.88829106]
[1766702821494,0.87830874,838.47,837.5,0.88829106]
[1766702821797,0.87830874,838.39,837.42,0.88829106]
[1766702822496,0.87830874,838.38,837.43,0.88829106]
[1766702823299,0.87830874,838.37,837.44,0.88829106]
[1766702824400,0.87830874,838.37,837.29,1.18807796]
[1766702824401,0.87830874,838.36,837.46,0.88829106]
[1766702825396,0.87830874,838.36,837.31,10.08138062]
[1766702825397,0.87830874,838.35,837.47,0.88829106]
[1766702826299,1.195,838.51,837.48,0.88829106]
[1766702826300,0.87830874,838.33,837.48,0.88829106]
[1766702826597,0.87830874,838.26,837.41,0.88829106]
[1766702828305,0.87830874,838.26,837.4,0.88829106]
[1766702829206,0.87830874,838.27,837.4,0.88829106]
[1766702830205,0.87830874,838.27,837.39,0.88829106]
[1766702831302,0.87830874,838.28,837.39,0.88829106]
[1766702832405,0.87830874,838.28,837.38,0.88829106]
[1766702833306,0.87830874,838.29,837.38,0.88829106]
[1766702836308,0.87830874,838.3,837.37,0.88829106]
[1766702838210,0.87830874,838.27,837.33,0.88829106]
[1766702839306,0.87830874,838.17,837.22,0.88829106]
[1766702839505,0.87830874,838.14,837.19,0.88829106]
[1766702839909,0.87830874,838.12,837.17,0.88829106]
[1766702840309,0.87830874,838.13,837.16,0.88829106]
[1766702841008,1.195,838.51,837.14,0.88829106]
[1766702841009,0.87830874,838.12,837.14,0.88829106]
[1766702841406,0.87830874,838.13,837.13,0.88829106]
[1766702841709,0.87830874,838.13,836.24,2.97019491]
[1766702841710,0.87830874,838.07,837.07,0.88829106]
[1766702842209,0.87830874,838.08,837.05,0.88829106]
[1766702843007,0.87830874,838.01,836.98,0.88829106]
[1766702843207,0.87830874,838.03,836.97,0.88829106]
[1766702843407,1.18783761,838.18,836.15,0.20778414]
[1766702843408,0.87830874,838.0,836.93,0.88829106]
[1766702844210,0.87830874,838.02,836.92,0.88829106]
[1766702845312,0.87830874,838.04,836.9,0.88829106]
[1766702846116,0.87830874,838.02,836.89,0.88829106]
[1766702846415,0.87830874,837.78,836.61,0.88829106]
[1766702846610,0.87830874,837.75,836.58,0.88829106]
[1766702846815,0.87830874,837.74,836.57,0.88829106]
[1766702847316,0.87830874,837.69,836.43,0.88829106]
[1766702847517,0.87830874,837.65,836.38,0.88829106]
[1766702847720,0.87830874,837.61,836.35,0.88829106]
[1766702848018,0.87830874,837.58,836.32,0.88829106]
[1766702848314,0.87830874,837.59,836.22,0.88829106]
[1766702848814,0.87830874,837.58,836.21,0.88829106]
[1766702849017,0.87830874,837.58,836.22,0.88829106]
[1766702849221,0.87830874,837.6,836.14,0.88829106]
[1766702849415,0.87830874,837.55,836.09,0.88829106]
[1766702849919,0.87830874,837.53,836.04,0.88829106]
[1766702850215,1.18783761,837.65,835.95,0.88829106]
[1766702850216,0.87830874,837.5,835.95,0.88829106]
[1766702850519,0.87830874,837.41,835.86,0.88829106]
[1766702850719,0.87830874,837.27,835.72,0.88829106]
[1766702850918,0.87830874,837.26,835.7,0.88829106]
[1766702851115,0.87830874,837.15,835.7,0.88829106]
[1766702851315,0.87830874,837.24,835.53,0.88829106]
[1766702851519,0.87830874,837.23,835.53,0.88829106]
[1766702852019,0.87830874,837.22,835.51,0.88829106]
[1766702852319,0.87830874,837.28,835.45,0.88829106]
[1766702852818,0.87830874,837.27,835.44,0.88829106]
[1766702853115,0.87830874,837.24,835.41,0.88829106]
[1766702853319,0.87830874,837.2,835.25,0.88829106]
[1766702853818,0.87830874,837.19,835.25,0.88829106]
[1766702854219,0.87830874,837.24,835.19,0.88829106]
[1766702855214,0.87830874,837.29,835.14,0.88829106]
[1766702855820,0.87830874,837.24,835.09,0.88829106]
[1766702856316,0.87830874,837.24,834.82,0.20808979]
[1766702856317,0.87830874,837.27,835.03,0.88829106]
[1766702856517,0.87830874,837.24,835.0,0.88829106]
[1766702856718,0.87830874,837.25,835.01,0.88829106]
[1766702856918,0.87830874,837.22,834.98,0.88829106]
[1766702857317,0.87830874,837.25,834.93,0.88829106]
[1766702857518,0.87830874,837.19,834.86,0.88829106]
[1766702858016,0.87830874,837.15,834.83,0.88829106]
[1766702858220,0.87830874,837.25,834.84,0.88829106]
[1766702858520,0.87830874,837.84,835.43,0.88829106]
[1766702858721,0.87830874,837.64,835.27,9.12481423]
[1766702859020,0.87830874,837.66,835.27,9.12481423]
[1766702859422,0.87830874,837.59,835.27,9.12481423]
[1766702859617,0.87830874,837.6,835.27,9.12481423]
[1766702860016,0.87830874,837.65,835.27,9.12481423]
[1766702860218,0.01144758,838.44,835.27,9.12481423]
[1766702860219,0.87830874,837.66,835.27,9.12481423]
[1766702860421,0.87830874,837.71,835.27,9.12481423]
[1766702861222,0.87830874,837.74,835.27,10.01310529]
[1766702861620,0.87830874,837.76,835.28,0.88829106]
[1766702863324,0.87830874,837.63,835.15,0.88829106]
[1766702863524,0.87830874,837.56,835.08,0.88829106]
[1766702863721,0.87830874,837.57,835.09,0.88829106]
[1766702864224,0.87830874,837.58,835.08,0.88829106]
[1766702864425,0.87830874,837.52,835.03,0.88829106]
[1766702864621,0.87830874,837.52,834.12,2.97019491]
[1766702864622,0.87830874,837.47,834.98,0.88829106]
[1766702865425,0.87830874,837.48,834.97,0.88829106]
[1766702865623,0.87830874,837.5,834.99,0.88829106]
[1766702865925,0.87830874,837.56,835.05,0.88829106]
[1766702866225,0.87830874,837.57,835.06,0.88829106]
[1766702866421,0.87830874,837.57,834.15,2.97019491]
[1766702866422,0.87830874,837.61,835.1,0.88829106]
[1766702866625,0.87830874,837.64,835.14,0.88829106]
[1766702866925,0.87830874,837.67,835.16,0.88829106]
[1766702867126,0.87830874,837.67,835.16,9.92435951]
[1766702867521,0.87830874,837.67,835.17,0.88829106]
[1766702867719,0.87830874,837.68,835.17,0.88829106]
[1766702867920,0.87830874,837.7,835.2,0.88829106]
[1766702868825,0.00987217,838.54,835.16,9.03606845]
[1766702868826,0.87830874,837.71,835.21,0.88829106]
[1766702869323,0.87830874,837.71,835.22,0.88829106]
[1766702869519,0.87830874,837.72,835.23,0.88829106]
[1766702869721,1.426,837.7,835.26,0.88829106]
[1766702869920,1.426,837.7,835.34,0.88829106]
[1766702870424,1.426,837.7,835.39,0.88829106]
[1766702871020,1.426,837.7,835.43,0.88829106]
[1766702871224,1.426,837.7,835.48,0.88829106]
[1766702871525,1.426,837.7,835.55,0.88829106]
[1766702871726,1.426,837.7,835.56,0.88829106]
[1766702872024,1.426,837.7,835.69,0.88829106]
[1766702872225,1.426,837.7,835.76,0.88829106]
[1766702872525,1.426,837.7,835.83,0.88829106]
[1766702872924,1.426,837.7,835.93,0.88829106]
[1766702873221,1.426,837.7,836.01,0.88829106]
[1766702873525,1.426,837.7,836.12,0.88829106]
[1766702873921,1.426,837.7,836.26,0.88829106]
[1766702874420,1.426,837.7,836.3,0.88829106]
[1766702875025,1.426,837.7,836.33,0.88829106]
[1766702875326,1.426,837.7,836.47,0.88829106]
[1766702875522,1.426,837.7,836.53,0.88829106]
[1766702876526,1.426,837.7,836.7,0.88829106]
[1766702876823,1.426,837.7,836.98,0.88829106]
[1766702877028,1.426,837.7,837.02,0.88829106]
[1766702877322,1.426,837.7,837.09,0.88829106]
[1766702877525,1.426,837.7,837.2,0.88829106]
[1766702877925,1.426,837.7,837.04,1.18807796]
[1766702877926,1.426,837.7,837.22,0.88829106]
[1766702878526,1.426,837.7,837.12,0.88829106]
[1766702878724,1.426,837.7,837.14,0.88829106]
[1766702879125,1.426,837.7,837.11,0.88829106]
[1766702880227,1.426,837.7,837.12,0.88829106]
[1766702880429,1.426,837.7,837.01,0.88829106]
[1766702880629,1.426,837.7,836.82,0.88829106]
[1766702880829,1.426,837.7,836.79,0.88829106]
[1766702881124,1.426,837.7,836.75,0.88829106]
[1766702882025,1.426,837.7,836.74,0.88829106]
[1766702882224,1.426,837.7,836.72,0.88829106]
[1766702882427,1.426,837.7,836.62,0.88829106]
[1766702882729,1.426,837.7,836.58,0.88829106]
[1766702882928,1.426,837.7,835.78,0.01324064]
[1766702882929,1.426,837.7,836.59,0.88829106]
[1766702883528,1.426,837.7,836.61,0.88829106]
[1766702884424,1.426,837.7,836.57,0.88829106]
[1766702885222,1.426,837.7,836.55,0.88829106]
[1766702886024,1.426,837.7,836.56,0.88829106]
[1766702887330,1.426,837.7,836.55,0.88829106]
[1766702888125,1.426,837.7,836.54,0.88829106]
[1766702888431,1.426,837.7,836.52,0.88829106]
[1766702888627,1.426,837.7,836.53,0.88829106]
[1766702889327,1.426,837.7,836.52,0.88829106]
[1766702889627,1.426,837.7,836.51,0.88829106]
[1766702890032,1.426,837.7,836.37,0.88829106]
[1766702890327,1.426,837.7,836.32,0.88829106]
[1766702891326,1.426,837.7,836.29,0.88829106]
[1766702891527,1.426,837.7,836.19,0.88829106]
[1766702892226,1.426,837.7,836.18,0.88829106]
[1766702892634,1.426,837.7,836.17,0.88829106]
[1766702892932,1.426,837.7,836.18,0.88829106]
[1766702893132,1.426,837.7,836.17,0.88829106]
[1766702894529,1.426,837.7,836.16,0.88829106]
[1766702895032,1.426,837.7,836.18,0.88829106]
[1766702895731,1.426,837.7,836.18,9.74308385]
[1766702896334,1.426,837.7,836.19,0.88829106]
[1766702896736,1.426,837.7,836.18,8.85479279]
[1766702899137,1.426,837.7,836.12,0.88829106]
[1766702899337,1.426,837.7,836.14,0.88829106]
[1766702900138,1.426,837.7,836.16,0.88829106]
[1766702900436,1.426,837.7,836.13,0.88829106]
[1766702900736,1.426,837.7,836.14,0.88829106]
[1766702901239,1.426,837.7,836.16,0.88829106]
[1766702901638,1.426,837.7,836.15,0.88829106]
[1766702901839,1.426,837.7,836.14,0.88829106]
[1766702902332,1.426,837.7,836.17,0.88829106]
[1766702902534,1.426,837.7,836.18,0.88829106]
[1766702902935,1.426,837.7,836.19,0.88829106]
[1766702903339,1.426,837.7,836.23,0.88829106]
[1766702903738,1.426,837.7,836.14,0.88829106]
[1766702904233,1.426,837.7,836.16,0.88829106]
[1766702904738,1.426,837.7,836.15,0.88829106]
[1766702904939,1.426,837.7,836.16,0.88829106]
[1766702905339,1.426,837.7,836.18,0.88829106]
[1766702906237,1.426,837.7,836.2,0.88829106]
[1766702906440,1.426,837.7,836.2,9.96239118]
[1766702906642,1.426,837.7,836.2,9.07410012]
[1766702906842,1.426,837.7,836.2,9.96239118]
[1766702907442,1.426,837.7,836.21,0.88829106]
[1766702907636,1.426,837.7,836.22,0.88829106]
[1766702908042,1.426,837.7,836.2,9.07410012]
[1766702908343,1.426,837.7,836.21,0.88829106]
[1766702908836,1.426,837.7,836.2,9.07410012]
[1766702908837,1.426,837.7,836.2,9.96239118]
[1766702909142,1.426,837.7,836.2,9.07410012]
[1766702910543,1.426,837.7,836.13,0.88829106]
[1766702910842,1.426,837.7,836.15,0.88829106]
[1766702911241,1.426,837.7,836.18,0.88829106]
[1766702911438,1.426,837.7,836.16,0.88829106]
[1766702912142,1.426,837.7,836.17,0.88829106]
[1766702912443,1.426,837.7,836.2,0.88829106]
[1766702913343,1.426,837.7,836.23,0.88829106]
[1766702914243,1.426,837.7,836.26,0.88829106]
[1766702915342,1.426,837.7,836.29,0.88829106]
[1766702916144,1.426,837.7,836.31,0.88829106]
[1766702916644,1.426,837.7,836.3,0.88829106]
[1766702917343,1.426,837.7,836.31,0.88829106]
[1766702918245,1.426,837.7,836.31,9.82686357]
[1766702918547,1.426,837.7,836.31,8.93857251]
[1766702918746,1.426,837.7,836.31,9.82686357]
[1766702919349,1.426,837.7,836.31,8.93857251]
[1766702921246,1.426,837.7,836.29,0.88829106]
[1766702922147,1.426,837.7,836.31,0.88829106]
[1766702923247,1.426,837.7,836.35,0.88829106]
[1766702923648,1.426,837.7,836.36,0.88829106]
[1766702924253,1.426,837.7,836.4,0.88829106]
[1766702924754,0.87830874,837.84,836.4,0.88829106]
[1766702925050,0.20774135,838.16,836.24,1.18807796]
[1766702925051,0.87830874,837.83,836.39,0.88829106]
[1766702925254,0.87830874,837.84,836.39,0.88829106]
[1766702925453,0.87830874,837.83,836.39,0.88829106]
[1766702925650,0.87830874,837.84,836.39,0.88829106]
[1766702926454,0.87830874,837.83,836.41,0.88829106]
[1766702926652,0.87830874,837.82,836.4,0.88829106]
[1766702926853,0.87830874,837.83,836.41,0.88829106]
[1766702927153,0.87830874,837.81,836.43,0.88829106]
[1766702927857,0.884,837.8,836.43,0.88829106]
[1766702928257,0.87830874,837.79,836.43,0.88829106]
[1766702928558,1.76230874,837.8,836.44,0.88829106]
[1766702929257,0.87830874,837.78,836.45,0.88829106]
[1766702929654,0.884,837.8,836.63,0.88829106]
[1766702930159,0.884,837.8,836.67,0.88829106]
[1766702930360,0.884,837.8,836.68,0.88829106]
[1766702930556,0.884,837.8,836.71,0.88829106]
[1766702930761,0.884,837.8,836.73,0.88829106]